[Event "Romanian-ch Open 2022"]
[Site "Eforie Nord"]
[Date "2022.02.22"]
[Round "4.23"]
[White "Ignat, Matei-Marius"]
[Black "Craciun, Sasha-Matei"]
[Result "1/2-1/2"]
[ECO "C97"]
[WhiteElo "2053"]
[BlackElo "1871"]
[Annotator "NA"]
[PlyCount "113"]
[EventDate "2022.02.20"]
[EventType "swiss"]
[EventCountry "ROU"]
[SourceTitle "playchess.com"]
[Source "ChessBase"]
[SourceQuality "1"]
[TimeControl "40/5400+30:900+30"]

1. e4 {[%emt 0:00:01]} e5 {[%emt 0:00:10]} 2. Nf3 {[%emt 0:00:03]} Nc6 {[%emt 0:00:05]} 3. Bb5 {[%emt 0:00:04]} a6 {[%emt 0:00:06]} 4. Ba4 {[%emt 0:00:02]} Nf6 {[%emt 0:00:05]} 5. O-O {[%emt 0:00:03]} Be7 {[%emt 0:00:07]} 6. Re1 {[%emt 0:00:04]} b5 {[%emt 0:00:06]} 7. Bb3 {[%emt 0:00:02]} d6 {[%emt 0:00:06]} 8. c3 {[%emt 0:00:03]} O-O {[%emt 0:00:06]} 9. h3 {[%emt 0:00:03]} Na5 {[%emt 0:00:21]} 10. Bc2 {[%emt 0:00:04]} c5 {[%emt 0:00:07]} 11. d4 {[%emt 0:00:06]} Qc7 {[%emt 0:00:09]} 12. d5 {[%emt 0:00:04]} Nd7 {[%emt 0:00:24]} 13. b3 {[%emt 0:03:10]} Nb6 {[%emt 0:01:27]} 14. Nbd2 {[%emt 0:05:10]} c4 {[%emt 0:00:32]} 15. Nf1 {[%emt 0:27:19]} cxb3 {[%emt 0:02:01]} 16. axb3 {[%emt 0:00:05]} Nb7 {[%emt 0:00:38]} 17. Be3 {[%emt 0:01:13]} Bd7 {[%emt 0:04:31]} 18. Qe2 {[%emt 0:09:37]} f5 {[%emt 0:08:56]} 19. Bxb6 {[%emt 0:13:15]} Qxb6 {[%emt 0:00:03]} 20. exf5 {[%emt 0:00:24]} Bxf5 {[%emt 0:00:24]} 21. Bxf5 {[%emt 0:00:19]} Rxf5 {[%emt 0:00:02]} 22. b4 {[%emt 0:00:01]} Qc7 {[%emt 0:08:17]} 23. Ra3 {[%emt 0:07:29]} Bd8 {[%emt 0:16:37]} 24. Rea1 {[%emt 0:23:57]} Qb6 {[%emt 0:01:24]} 25. N3d2 {[%emt 0:00:30]} Rf7 {[%emt 0:09:58]} 26. Nb3 {[%emt 0:08:17]} Bg5 {[%emt 0:03:31]} 27. R1a2 {[%emt 0:01:19]} Nd8 {[%emt 0:04:46]} 28. g3 {[%emt 0:00:40]} Rc7 {[%emt 0:01:54]} 29. h4 {[%emt 0:00:22]} Bf6 {[%emt 0:00:25]} 30. Nbd2 {[%emt 0:00:11]} Qb7 {[%emt 0:01:36]} 31. Ne3 {[%emt 0:00:27]} Nf7 {[%emt 0:00:21]} 32. Ne4 {[%emt 0:00:39]} Be7 {[%emt 0:00:38]} 33. Qd1 {[%emt 0:01:03]} Qb6 {[%emt 0:00:54]} 34. Qa1 {[%emt 0:00:41]} Rca7 {[%emt 0:00:14]} 35. Kg2 {[%emt 0:00:28]} Bd8 {[%emt 0:00:21]} 36. Qb2 {[%emt 0:00:38]} Qb7 {[%emt 0:02:01]} 37. Qa1 {[%emt 0:00:25]} Bb6 {[%emt 0:00:16]} 38. Qd1 {[%emt 0:00:31]} Qc7 {[%emt 0:00:47]} 39. Qd3 {[%emt 0:00:33]} Bxe3 {[%emt 0:02:01]} 40. fxe3 {[%emt 0:00:00]} Qb6 {[%emt 0:00:00]} 41. Rf2 {[%emt 0:08:39]} Qd8 {[%emt 0:05:21]} 42. Rf3 {[%emt 0:01:55]} h6 {[%emt 0:03:22]} 43. Ra2 {[%emt 0:00:48]} Nh8 {[%emt 0:01:32]} 44. Raf2 {[%emt 0:00:21]} Qd7 {[%emt 0:00:01]} 45. Qf1 {[%emt 0:03:29]} Qe7 {[%emt 0:00:13]} 46. h5 {[%emt 0:02:08]} Rc7 {[%emt 0:00:33]} 47. Qd3 {[%emt 0:01:34]} Rc4 {[%emt 0:01:09]} 48. Kh3 {[%emt 0:00:38]} Rcc8 {[%emt 0:01:35]} 49. Qf1 {[%emt 0:00:29]} Rc4 {[%emt 0:01:52]} 50. Qb1 {[%emt 0:00:31]} Re8 {[%emt 0:01:38]} 51. Qc2 {[%emt 0:00:29]} Rcc8 {[%emt 0:00:30]} 52. Qa2 {[%emt 0:00:22]} Ra8 {[%emt 0:00:24]} 53. Qa1 {[%emt 0:00:38]} Qd7+ {[%emt 0:00:54]} 54. g4 {[%emt 0:00:09]} Re7 {[%emt 0:00:19]} 55. Qa5 {[%emt 0:00:49]} Nf7 {[%emt 0:01:12]} 56. Qb6 {[%emt 0:00:34]} Qc7 {[%emt 0:00:30]} 57. Qxc7 {[%emt 0:00:28]} 1/2-1/2

[Event "Romanian-ch Open 2022"]
[Site "Eforie Nord"]
[Date "2022.02.22"]
[Round "4.27"]
[White "Zaim, Marian"]
[Black "Visanescu, Dragos-Nicholas"]
[Result "1/2-1/2"]
[ECO "A14"]
[WhiteElo "1964"]
[BlackElo "1781"]
[Annotator "NA"]
[PlyCount "120"]
[EventDate "2022.02.20"]
[EventType "swiss"]
[EventCountry "ROU"]
[SourceTitle "playchess.com"]
[Source "ChessBase"]
[SourceQuality "1"]
[TimeControl "40/5400+30:900+30"]

1. g3 {[%emt 0:00:02]} d5 {[%emt 0:00:14]} 2. Bg2 {[%emt 0:00:38]} Nf6 {[%emt 0:00:09]} 3. c4 {[%emt 0:00:15]} e6 {[%emt 0:00:05]} 4. Nf3 {[%emt 0:00:35]} Be7 {[%emt 0:00:05]} 5. O-O {[%emt 0:00:38]} O-O {[%emt 0:00:14]} 6. b3 {[%emt 0:01:07]} b6 {[%emt 0:00:06]} 7. Bb2 {[%emt 0:00:56]} Bb7 {[%emt 0:00:08]} 8. d3 {[%emt 0:02:13]} c5 {[%emt 0:01:22]} 9. e3 {[%emt 0:00:47]} Nc6 {[%emt 0:01:02]} 10. Qe2 {[%emt 0:01:46]} Qc7 {[%emt 0:01:15]} 11. Nc3 {[%emt 0:01:36]} a6 {[%emt 0:04:08]} 12. Rfd1 {[%emt 0:05:25]} Rad8 {[%emt 0:12:11]} 13. cxd5 {[%emt 0:05:44]} exd5 {[%emt 0:03:04]} 14. d4 {[%emt 0:03:23]} cxd4 {[%emt 0:08:38]} 15. Nxd4 {[%emt 0:03:46]} Nxd4 {[%emt 0:03:01]} 16. Rxd4 {[%emt 0:01:04]} Bc5 {[%emt 0:00:43]} 17. Rdd1 {[%emt 0:02:07]} d4 {[%emt 0:03:19]} 18. exd4 {[%emt 0:00:15]} Bxd4 {[%emt 0:00:25]} 19. Rxd4 {[%emt 0:03:18]} Rxd4 {[%emt 0:04:21]} 20. Nb5 {[%emt 0:00:01]} axb5 {[%emt 0:01:15]} 21. Bxd4 {[%emt 0:00:03]} Bxg2 {[%emt 0:03:44]} 22. Kxg2 {[%emt 0:00:02]} Qd6 {[%emt 0:07:46]} 23. Bb2 {[%emt 0:09:50]} b4 {[%emt 0:04:55]} 24. Rd1 {[%emt 0:03:39]} Qc6+ {[%emt 0:05:23]} 25. Qf3 {[%emt 0:00:02]} Qe6 {[%emt 0:01:00]} 26. Rd4 {[%emt 0:03:35]} Qe7 {[%emt 0:13:19]} 27. Rf4 {[%emt 0:03:20]} Rd8 {[%emt 0:08:16]} 28. Rxf6 {[%emt 0:07:09]} gxf6 {[%emt 0:00:37]} 29. Bxf6 {[%emt 0:00:06]} Qd7 {[%emt 0:00:30]} 30. Bxd8 {[%emt 0:00:11]} Qxd8 {[%emt 0:00:03]} 31. Qg4+ {[%emt 0:00:09]} Kh8 {[%emt 0:01:06]} 32. Qxb4 {[%emt 0:00:21]} Qd5+ {[%emt 0:03:03]} 33. f3 {[%emt 0:01:00]} Qd8 {[%emt 0:00:34]} 34. Qc3+ {[%emt 0:00:39]} Kg8 {[%emt 0:00:17]} 35. a4 {[%emt 0:00:19]} Qd1 {[%emt 0:01:43]} 36. Qe3 {[%emt 0:01:44]} Qc2+ {[%emt 0:01:00]} 37. Kh3 {[%emt 0:00:33]} Qc6 {[%emt 0:02:21]} 38. b4 {[%emt 0:05:50]} Qxa4 {[%emt 0:01:53]} 39. Qxb6 {[%emt 0:01:42]} Qd7+ {[%emt 0:00:08]} 40. g4 {[%emt 0:00:00]} Qd1 {[%emt 0:00:00]} 41. Qe3 {[%emt 0:03:25]} Qb1 {[%emt 0:03:38]} 42. Qg5+ {[%emt 0:02:58]} Kf8 {[%emt 0:01:16]} 43. Qc5+ {[%emt 0:00:36]} Kg8 {[%emt 0:00:40]} 44. b5 {[%emt 0:01:51]} Qf1+ {[%emt 0:01:01]} 45. Kg3 {[%emt 0:00:01]} Qe1+ {[%emt 0:00:16]} 46. Kf4 {[%emt 0:00:15]} Qd2+ {[%emt 0:00:27]} 47. Kg3 {[%emt 0:10:19]} Qe1+ {[%emt 0:00:40]} 48. Kh3 {[%emt 0:01:17]} Qf1+ {[%emt 0:01:15]} 49. Kh4 {[%emt 0:00:23]} Qxf3 {[%emt 0:10:28]} 50. Qg5+ {[%emt 0:04:35]} Kf8 {[%emt 0:00:42]} 51. Qf5 {[%emt 0:00:47]} Qe2 {[%emt 0:02:09]} 52. h3 {[%emt 0:01:21]} Qe7+ {[%emt 0:01:47]} 53. g5 {[%emt 0:03:35]} h6 {[%emt 0:01:53]} 54. Kh5 {[%emt 0:01:25]} hxg5 {[%emt 0:00:48]} 55. Qxg5 {[%emt 0:00:16]} Qe2+ {[%emt 0:00:26]} 56. Kh4 {[%emt 0:02:34]} Qe1+ {[%emt 0:00:16]} 57. Kg4 {[%emt 0:00:23]} Qg1+ {[%emt 0:00:23]} 58. Kh5 {[%emt 0:01:05]} Qd1+ {[%emt 0:00:24]} 59. Kh4 {[%emt 0:01:24]} Qe1+ {[%emt 0:00:43]} 60. Kh5 {[%emt 0:03:07]} Qe3 {[%emt 0:02:55]} 1/2-1/2

[Event "Romanian-ch Open 2022"]
[Site "Eforie Nord"]
[Date "2022.02.23"]
[Round "5.15"]
[White "Popescu, Daniel-Vasilica"]
[Black "Anton, Teodor"]
[Result "0-1"]
[ECO "B90"]
[WhiteElo "2064"]
[BlackElo "2457"]
[Annotator "RC"]
[PlyCount "102"]
[EventDate "2022.02.20"]
[EventType "swiss"]
[EventCountry "ROU"]
[SourceTitle "playchess.com"]
[Source "ChessBase"]
[SourceQuality "1"]
[TimeControl "40/5400+30:900+30"]

1. e4 {[%emt 0:00:04]} c5 {[%emt 0:00:27]} 2. Nf3 {[%emt 0:00:06]} d6 {[%emt 0:00:10]} 3. d4 {[%emt 0:00:04]} cxd4 {[%emt 0:00:08]} 4. Nxd4 {[%emt 0:00:06]} Nf6 {[%emt 0:00:04]} 5. Nc3 {[%emt 0:00:06]} a6 {[%emt 0:00:06]} 6. Be3 {[%emt 0:02:00]} e5 {[%emt 0:00:49]} 7. Nb3 {[%emt 0:00:06]} Be6 {[%emt 0:00:06]} 8. f3 {[%emt 0:04:02]} Be7 {[%emt 0:00:06]} 9. Qd2 {[%emt 0:00:47]} O-O {[%emt 0:00:08]} 10. O-O-O {[%emt 0:00:03]} a5 {[%emt 0:00:21]} 11. Kb1 {[%emt 0:05:04]} a4 {[%emt 0:00:06]} 12. Nc1 {[%emt 0:00:05]} Ra5 {[%emt 0:00:07]} 13. g4 {[%emt 0:01:20]} a3 {[%emt 0:10:27]} 14. b3 {[%emt 0:08:01]} d5 {[%emt 0:06:26]} 15. g5 {[%emt 0:02:52]} Nxe4 {[%emt 0:00:19]} 16. fxe4 {[%emt 0:06:21]} d4 {[%emt 0:00:06]} 17. Qe1 {[%emt 0:18:43]} Bb4 {[%emt 0:04:09]} 18. Bd2 {[%emt 0:02:02]} dxc3 {[%emt 0:00:33]} 19. Be3 {[%emt 0:04:38]} Qc7 {[%emt 0:04:25]} 20. Nd3 {[%emt 0:00:06]} Be7 {[%emt 0:02:13]} 21. Rg1 {[%emt 0:02:50]} Na6 {[%emt 0:08:59]} 22. h4 {[%emt 0:03:13]} Nb4 {[%emt 0:02:43]} 23. Nxb4 {[%emt 0:00:10]} Bxb4 {[%emt 0:00:07]} 24. Qf2 {[%emt 0:02:39]} Bc5 {[%emt 0:01:25]} 25. Bxc5 {[%emt 0:04:44]} Qxc5 {[%emt 0:00:07]} 26. Qxc5 {[%emt 0:00:17]} Rxc5 {[%emt 0:00:04]} 27. Rg3 {[%emt 0:00:55]} f6 {[%emt 0:03:05]} 28. g6 {[%emt 0:06:29]} hxg6 {[%emt 0:00:14]} 29. Rxg6 {[%emt 0:00:07]} Kf7 {[%emt 0:00:15]} 30. h5 {[%emt 0:00:05]} Rh8 {[%emt 0:03:22]} 31. Be2 {[%emt 0:00:30]} Rc7 {[%emt 0:03:01]} 32. Rg3 {[%emt 0:04:48]} g5 {[%emt 0:12:08]} 33. hxg6+ {[%emt 0:02:22]} Kg7 {[%emt 0:00:17]} 34. Kc1 {[%emt 0:07:42]} Rh6 {[%emt 0:01:44]} 35. Rdd3 {[%emt 0:02:32]} Rh1+ {[%emt 0:04:00]} 36. Bd1 {[%emt 0:00:17]} Bxb3 {[%emt 0:04:18]} 37. Rxc3 {[%emt 0:01:30]} Rd7 {[%emt 0:01:58]} 38. Rgd3 {[%emt 0:00:09]} Rxd3 {[%emt 0:00:27]} 39. Rxd3 {[%emt 0:00:07]} Bc4 {[%emt 0:00:16]} 40. Re3 {[%emt 0:00:00]} Kxg6 {[%emt 0:00:00]} 41. Rg3+ {[%emt 0:12:47]} Kf7 {[%emt 0:02:44]} 42. Kd2 {[%emt 0:00:05]} Rh2+ {[%emt 0:01:56]} 43. Kc3 {[%emt 0:02:30]} Bxa2 {[%emt 0:00:30]} 44. Kb4 {[%emt 0:00:05]} Rh4 {[%emt 0:04:04]} 45. Kxa3 {[%emt 0:04:04]} Be6 {[%emt 0:00:10]} 46. Re3 {[%emt 0:00:25]} Rh3 {[%emt 0:00:54]} 47. Rxh3 {[%emt 0:03:04]} Bxh3 {[%emt 0:00:05]} 48. c4 {[%emt 0:01:20]} Bg2 {[%emt 0:02:22]} 49. Bc2 {[%emt 0:00:06]} Kg6 {[%emt 0:00:20]} 50. Kb4 {[%emt 0:00:19]} Kg5 {[%emt 0:00:04]} 51. Kc5 {[%emt 0:00:58]} Kf4 {[%emt 0:00:15]} 0-1

[Event "Romanian-ch Open 2022"]
[Site "Eforie Nord"]
[Date "2022.02.24"]
[Round "6.7"]
[White "Toma, Radu-Cristian"]
[Black "Ghimpu, Samuel-Timotei"]
[Result "1-0"]
[ECO "A06"]
[WhiteElo "2388"]
[BlackElo "2420"]
[Annotator "RC"]
[PlyCount "185"]
[EventDate "2022.02.20"]
[EventType "swiss"]
[EventCountry "ROU"]
[SourceTitle "playchess.com"]
[Source "ChessBase"]
[SourceQuality "1"]
[TimeControl "40/5400+30:900+30"]

1. Nf3 {[%emt 0:00:03]} d5 {[%emt 0:01:00]} 2. e3 {[%emt 0:00:50]} Nf6 {[%emt 0:02:23]} 3. b3 {[%emt 0:02:27]} Bf5 {[%emt 0:02:39]} 4. Be2 {[%emt 0:07:09]} h6 {[%emt 0:01:14]} 5. Ba3 {[%emt 0:02:02]} Nbd7 {[%emt 0:14:28]} 6. O-O {[%emt 0:03:07]} c5 {[%emt 0:06:57]} 7. c4 {[%emt 0:05:20]} dxc4 {[%emt 0:00:43]} 8. bxc4 {[%emt 0:04:45]} e6 {[%emt 0:02:40]} 9. Qb3 {[%emt 0:10:18]} Qc7 {[%emt 0:04:50]} 10. d3 {[%emt 0:02:55]} Be7 {[%emt 0:01:45]} 11. Nc3 {[%emt 0:02:32]} O-O {[%emt 0:00:16]} 12. Rab1 {[%emt 0:00:21]} b6 {[%emt 0:02:29]} 13. Nb5 {[%emt 0:00:46]} Qc8 {[%emt 0:00:33]} 14. h3 {[%emt 0:01:26]} a6 {[%emt 0:01:10]} 15. Nc3 {[%emt 0:00:15]} b5 {[%emt 0:00:24]} 16. e4 {[%emt 0:08:51]} Bg6 {[%emt 0:01:33]} 17. cxb5 {[%emt 0:04:34]} axb5 {[%emt 0:34:17]} 18. Nxb5 {[%emt 0:00:07]} Qa6 {[%emt 0:00:37]} 19. Bc1 {[%emt 0:02:54]} Qxa2 {[%emt 0:04:16]} 20. Qxa2 {[%emt 0:00:42]} Rxa2 {[%emt 0:00:01]} 21. Nc3 {[%emt 0:00:57]} Raa8 {[%emt 0:02:11]} 22. Rb7 {[%emt 0:06:42]} Rfb8 {[%emt 0:01:07]} 23. Rxb8+ {[%emt 0:00:08]} Rxb8 {[%emt 0:00:01]} 24. Bf4 {[%emt 0:07:50]} Rb2 {[%emt 0:01:18]} 25. Nd2 {[%emt 0:01:52]} Nh5 {[%emt 0:05:35]} 26. Bxh5 {[%emt 0:04:37]} Bxh5 {[%emt 0:00:23]} 27. Rc1 {[%emt 0:01:25]} Bf6 {[%emt 0:02:25]} 28. Na4 {[%emt 0:01:53]} Ra2 {[%emt 0:00:14]} 29. Nxc5 {[%emt 0:00:51]} Nxc5 {[%emt 0:02:31]} 30. Rxc5 {[%emt 0:00:12]} e5 {[%emt 0:02:35]} 31. Bxe5 {[%emt 0:03:30]} Bxe5 {[%emt 0:00:04]} 32. Rxe5 {[%emt 0:00:04]} Rxd2 {[%emt 0:00:04]} 33. Rxh5 {[%emt 0:00:10]} Rxd3 {[%emt 0:00:01]} 34. Kh2 {[%emt 0:01:43]} Kf8 {[%emt 0:01:23]} 35. Ra5 {[%emt 0:03:42]} g5 {[%emt 0:01:23]} 36. h4 {[%emt 0:03:09]} Rd4 {[%emt 0:01:30]} 37. f3 {[%emt 0:05:32]} gxh4 {[%emt 0:00:21]} 38. Kh3 {[%emt 0:00:13]} Rd2 {[%emt 0:00:03]} 39. Rh5 {[%emt 0:00:19]} Kg7 {[%emt 0:00:03]} 40. Rxh4 {[%emt 0:00:00]} Rd1 {[%emt 0:00:00]} 41. Kg3 {[%emt 0:01:53]} Kg6 {[%emt 0:03:42]} 42. Rg4+ {[%emt 0:00:25]} Kf6 {[%emt 0:00:06]} 43. Kf4 {[%emt 0:01:32]} Rh1 {[%emt 0:01:09]} 44. Rg8 {[%emt 0:00:51]} Rh4+ {[%emt 0:00:13]} 45. Kg3 {[%emt 0:00:54]} Rh1 {[%emt 0:00:07]} 46. Kg4 {[%emt 0:00:18]} Rh2 {[%emt 0:00:57]} 47. g3 {[%emt 0:00:27]} Rh1 {[%emt 0:00:13]} 48. Kf4 {[%emt 0:00:23]} Re1 {[%emt 0:01:16]} 49. Kg4 {[%emt 0:03:03]} Re2 {[%emt 0:01:56]} 50. Rb8 {[%emt 0:00:32]} Re3 {[%emt 0:02:57]} 51. Kf4 {[%emt 0:00:38]} Ra3 {[%emt 0:00:20]} 52. Rg8 {[%emt 0:00:33]} Ra5 {[%emt 0:06:45]} 53. Rd8 {[%emt 0:01:09]} Kg7 {[%emt 0:00:21]} 54. Rd5 {[%emt 0:00:34]} Ra3 {[%emt 0:00:07]} 55. Kg4 {[%emt 0:00:10]} Ra4 {[%emt 0:00:02]} 56. Re5 {[%emt 0:01:07]} Kg6 {[%emt 0:00:37]} 57. Kf4 {[%emt 0:01:30]} Ra6 {[%emt 0:00:56]} 58. Rd5 {[%emt 0:00:44]} Ra3 {[%emt 0:00:39]} 59. Rd8 {[%emt 0:00:26]} Kg7 {[%emt 0:00:08]} 60. e5 {[%emt 0:01:40]} Rb3 {[%emt 0:00:23]} 61. Rd7 {[%emt 0:00:40]} Kg6 {[%emt 0:00:43]} 62. Rd6+ {[%emt 0:00:14]} Kg7 {[%emt 0:00:01]} 63. g4 {[%emt 0:01:47]} Ra3 {[%emt 0:00:09]} 64. Ke4 {[%emt 0:00:17]} Ra4+ {[%emt 0:01:17]} 65. Rd4 {[%emt 0:00:19]} Ra1 {[%emt 0:00:24]} 66. Kf5 {[%emt 0:01:05]} Ra3 {[%emt 0:00:13]} 67. Ke4 {[%emt 0:01:56]} Ra1 {[%emt 0:00:22]} 68. Rd3 {[%emt 0:00:14]} Ra4+ {[%emt 0:00:36]} 69. Kf5 {[%emt 0:00:16]} Rb4 {[%emt 0:00:49]} 70. Ra3 {[%emt 0:00:45]} Rc4 {[%emt 0:00:16]} 71. Ra7 {[%emt 0:00:37]} Rc3 {[%emt 0:01:13]} 72. Ke4 {[%emt 0:00:15]} Rc4+ {[%emt 0:01:26]} 73. Kd3 {[%emt 0:00:27]} Rc6 {[%emt 0:00:21]} 74. f4 {[%emt 0:00:27]} Rb6 {[%emt 0:03:34]} 75. f5 {[%emt 0:02:27]} Kg8 {[%emt 0:00:04]} 76. Ra4 {[%emt 0:00:16]} Kg7 {[%emt 0:01:00]} 77. Kd4 {[%emt 0:00:29]} Rb1 {[%emt 0:00:12]} 78. Kd5 {[%emt 0:00:13]} Rb5+ {[%emt 0:00:14]} 79. Kd6 {[%emt 0:00:16]} Rb6+ {[%emt 0:00:13]} 80. Kc5 {[%emt 0:00:27]} Rb1 {[%emt 0:00:23]} 81. Ra7 {[%emt 0:00:52]} Kf8 {[%emt 0:01:27]} 82. Ra4 {[%emt 0:03:12]} Kg7 {[%emt 0:00:11]} 83. Kd6 {[%emt 0:00:31]} Rb6+ {[%emt 0:00:41]} 84. Kc5 {[%emt 0:00:23]} Rb1 {[%emt 0:00:01]} 85. Rb4 {[%emt 0:00:15]} Rd1 {[%emt 0:01:06]} 86. Rd4 {[%emt 0:00:07]} Ra1 {[%emt 0:00:07]} 87. Kd6 {[%emt 0:00:11]} Ra7 {[%emt 0:01:00]} 88. Rc4 {[%emt 0:00:31]} Ra8 {[%emt 0:00:32]} 89. Rc7 {[%emt 0:00:25]} Ra6+ {[%emt 0:00:29]} 90. Ke7 {[%emt 0:01:10]} Rb6 {[%emt 0:01:05]} 91. e6 {[%emt 0:00:47]} fxe6 {[%emt 0:00:00]} 92. f6+ {[%emt 0:00:06]} Kg6 {[%emt 0:00:26]} 93. f7 {[%emt 0:00:07]} 1-0

[Event "Romanian-ch Open 2022"]
[Site "Eforie Nord"]
[Date "2022.02.24"]
[Round "6.8"]
[White "Antonica, Dragos-Andrei"]
[Black "Istratescu, Andrei"]
[Result "1/2-1/2"]
[ECO "A18"]
[WhiteElo "2350"]
[BlackElo "2470"]
[Annotator "RC"]
[PlyCount "42"]
[EventDate "2022.02.20"]
[EventType "swiss"]
[EventCountry "ROU"]
[SourceTitle "playchess.com"]
[Source "ChessBase"]
[SourceQuality "1"]
[TimeControl "40/5400+30:900+30"]

1. c4 {[%emt 0:00:02]} Nf6 {[%emt 0:01:00]} 2. Nc3 {[%emt 0:00:16]} e6 {[%emt 0:00:34]} 3. e4 {[%emt 0:00:15]} d5 {[%emt 0:00:58]} 4. e5 {[%emt 0:03:12]} d4 {[%emt 0:00:30]} 5. exf6 {[%emt 0:00:08]} dxc3 {[%emt 0:00:03]} 6. bxc3 {[%emt 0:00:11]} Qxf6 {[%emt 0:00:06]} 7. d4 {[%emt 0:02:00]} b6 {[%emt 0:01:41]} 8. Nf3 {[%emt 0:04:48]} Bb7 {[%emt 0:03:02]} 9. Be2 {[%emt 0:03:18]} Bd6 {[%emt 0:05:53]} 10. O-O {[%emt 0:08:12]} O-O {[%emt 0:02:06]} 11. Be3 {[%emt 0:07:46]} Nd7 {[%emt 0:10:42]} 12. Qa4 {[%emt 0:14:48]} Qe7 {[%emt 0:00:56]} 13. Bg5 {[%emt 0:06:51]} f6 {[%emt 0:01:45]} 14. Bh4 {[%emt 0:01:11]} c5 {[%emt 0:02:55]} 15. Bg3 {[%emt 0:05:55]} Rfd8 {[%emt 0:22:48]} 16. Rfe1 {[%emt 0:05:19]} Nf8 {[%emt 0:01:52]} 17. Rad1 {[%emt 0:01:04]} Bxg3 {[%emt 0:05:29]} 18. hxg3 {[%emt 0:02:15]} Rd6 {[%emt 0:01:48]} 19. dxc5 {[%emt 0:11:42]} Rxd1 {[%emt 0:00:22]} 20. Rxd1 {[%emt 0:00:18]} Qxc5 {[%emt 0:00:06]} 21. Nd4 {[%emt 0:00:29]} Qe7 {[%emt 0:03:54]} 1/2-1/2

[Event "Romanian-ch Open 2022"]
[Site "Eforie Nord"]
[Date "2022.02.24"]
[Round "6.9"]
[White "Anton, Teodor"]
[Black "Patrascu, Catalin-Lucian"]
[Result "1-0"]
[ECO "E36"]
[WhiteElo "2457"]
[BlackElo "2310"]
[Annotator "RC"]
[PlyCount "85"]
[EventDate "2022.02.20"]
[EventType "swiss"]
[EventCountry "ROU"]
[SourceTitle "playchess.com"]
[Source "ChessBase"]
[SourceQuality "1"]
[TimeControl "40/5400+30:900+30"]

1. d4 {[%emt 0:00:34]} Nf6 {[%emt 0:00:08]} 2. c4 {[%emt 0:00:10]} e6 {[%emt 0:00:07]} 3. Nc3 {[%emt 0:00:10]} Bb4 {[%emt 0:00:13]} 4. Qc2 {[%emt 0:00:25]} O-O {[%emt 0:00:59]} 5. a3 {[%emt 0:00:17]} Bxc3+ {[%emt 0:00:09]} 6. Qxc3 {[%emt 0:00:05]} d5 {[%emt 0:00:30]} 7. Bg5 {[%emt 0:00:22]} dxc4 {[%emt 0:00:27]} 8. Qxc4 {[%emt 0:00:42]} b6 {[%emt 0:00:22]} 9. Nf3 {[%emt 0:00:10]} Ba6 {[%emt 0:00:43]} 10. Qa4 {[%emt 0:00:07]} Qd7 {[%emt 0:18:27]} 11. Qc2 {[%emt 0:05:08]} Rc8 {[%emt 0:12:37]} 12. Bxf6 {[%emt 0:06:02]} gxf6 {[%emt 0:00:45]} 13. Qe4 {[%emt 0:07:18]} Qb5 {[%emt 0:17:07]} 14. b4 {[%emt 0:18:34]} Qc4 {[%emt 0:08:22]} 15. Nd2 {[%emt 0:00:50]} Qc3 {[%emt 0:01:03]} 16. Rd1 {[%emt 0:00:14]} Nc6 {[%emt 0:03:47]} 17. e3 {[%emt 0:05:18]} Bxf1 {[%emt 0:04:00]} 18. Kxf1 {[%emt 0:01:04]} a5 {[%emt 0:09:09]} 19. b5 {[%emt 0:14:34]} Ne7 {[%emt 0:01:40]} 20. g4 {[%emt 0:03:54]} Qxa3 {[%emt 0:05:27]} 21. Qf3 {[%emt 0:02:08]} Nd5 {[%emt 0:09:22]} 22. Ne4 {[%emt 0:00:55]} Qb3 {[%emt 0:01:14]} 23. Kg2 {[%emt 0:01:06]} Qxb5 {[%emt 0:00:35]} 24. Rb1 {[%emt 0:02:52]} Qe8 {[%emt 0:02:30]} 25. Ng3 {[%emt 0:01:01]} Qf8 {[%emt 0:02:12]} 26. e4 {[%emt 0:01:34]} Ne7 {[%emt 0:00:29]} 27. Qxf6 {[%emt 0:02:18]} Ng6 {[%emt 0:00:11]} 28. Nh5 {[%emt 0:03:10]} a4 {[%emt 0:00:19]} 29. f4 {[%emt 0:02:02]} Qh6 {[%emt 0:01:23]} 30. Rhf1 {[%emt 0:00:19]} a3 {[%emt 0:00:27]} 31. f5 {[%emt 0:00:46]} exf5 {[%emt 0:00:26]} 32. exf5 {[%emt 0:01:02]} a2 {[%emt 0:00:33]} 33. Ra1 {[%emt 0:01:09]} Rd8 {[%emt 0:00:40]} 34. fxg6 {[%emt 0:00:54]} Qxg6 {[%emt 0:00:17]} 35. Qe5 {[%emt 0:05:17]} Rd6 {[%emt 0:00:38]} 36. d5 {[%emt 0:07:13]} h6 {[%emt 0:00:34]} 37. Nf6+ {[%emt 0:00:59]} Kf8 {[%emt 0:00:15]} 38. Kh1 {[%emt 0:00:55]} Qd3 {[%emt 0:00:32]} 39. Rae1 {[%emt 0:02:34]} Qb5 {[%emt 0:00:28]} 40. Qe7+ {[%emt 0:00:00]} Kg7 {[%emt 0:00:00]} 41. Nh5+ {[%emt 0:02:07]} Kh8 {[%emt 0:00:30]} 42. Qe5+ {[%emt 0:00:06]} f6 {[%emt 0:00:08]} 43. Nxf6 {[%emt 0:00:13]} 1-0